bitfinex/quotes_ETHUSD_20250616
["timestamp","ask_amount","ask_price","bid_price","bid_amount"]
[1750109296947,0.7809,2660.6,2660.0,0.7611]
[1750109297238,10.56066502,2660.7,2660.2,9.25730883]
[1750109297443,1.618,2660.5,2660.4,3.75881178]
[1750109298220,1.618,2660.5,2660.3,3.75890894]
[1750109298432,1.618,2660.5,2660.4,3.75883325]
[1750109299221,10.56066502,2660.7,2660.4,3.75880654]
[1750109299410,10.56066502,2660.7,2660.6,3.7585507]
[1750109299614,12.17866502,2660.7,2660.6,3.7585507]
[1750109300848,12.17866502,2660.7,2660.5,3.75861977]
[1750109301213,12.17866502,2660.7,2660.6,3.7585507]
[1750109301838,12.17866502,2660.7,2660.5,3.75862744]
[1750109303150,12.17866502,2660.7,2660.5,3.75869197]
[1750109303452,12.17866502,2660.7,2660.6,3.7585507]
[1750109304348,12.17866502,2660.7,2660.5,3.75862148]
[1750109304555,12.17866502,2660.7,2660.6,3.7585507]
[1750109305843,10.56066502,2660.7,2660.6,3.7585507]
[1750109306047,12.17866502,2660.7,2660.6,3.7585507]
[1750109306936,2.61466502,2660.7,2660.6,3.7585507]
[1750109307134,4.23266502,2660.7,2660.6,3.7585507]
[1750109307347,4.23266502,2660.7,2660.6,4.68133936]
[1750109309981,2.41311278,2660.7,2660.6,19.77932089]
[1750109310137,0.02,2660.9,2660.8,15.12006819]
[1750109310336,0.02,2660.9,2660.8,22.67724972]
[1750109311077,0.42016807,2661.2,2661.1,14.3078445]
[1750109311278,0.42016807,2661.2,2661.1,30.66140702]
[1750109312242,0.42016807,2661.2,2661.1,23.47925462]
[1750109312556,0.42016807,2661.2,2661.1,31.03643615]
[1750109323382,0.42016807,2661.2,2661.1,24.85843615]
[1750109323585,0.42016807,2661.2,2661.1,16.75125462]
[1750109323767,0.42016807,2661.2,2661.1,12.92425462]
[1750109324083,0.42016807,2661.2,2661.1,13.47425462]
[1750109324684,0.42016807,2661.2,2661.1,7.30125462]
[1750109324850,0.42016807,2661.2,2661.1,13.47425462]
[1750109326576,0.42016807,2661.2,2661.1,6.37622549]
[1750109326877,0.42016807,2661.2,2661.1,11.73742549]
[1750109329483,0.42016807,2661.2,2661.1,3.7578445]
[1750109329656,1.19756807,2661.2,2660.6,7.55718153]
[1750109329854,1.19756807,2661.2,2660.9,3.75812382]
[1750109330060,1.19756807,2661.2,2661.0,6.172]
[1750109330445,1.19756807,2661.2,2661.0,9.92998017]
[1750109330649,1.19756807,2661.2,2661.0,6.172]
[1750109330974,1.19756807,2661.2,2661.0,9.92996169]
[1750109331689,1.19756807,2661.2,2661.0,9.93096169]
[1750109332747,1.19756807,2661.2,2661.1,3.7578445]
[1750109339293,1.19756807,2661.2,2661.0,9.93090527]
[1750109339964,1.19756807,2661.2,2661.1,3.7578445]
[1750109340377,0.42016807,2661.2,2661.1,5.12672673]
[1750109340691,0.42016807,2661.2,2661.1,3.7578445]
[1750109357378,0.42016807,2661.2,2661.0,9.9269122]
[1750109358534,0.42016807,2661.2,2661.0,9.9259122]
[1750109363832,0.42016807,2661.2,2661.1,3.7578445]
[1750109364437,0.42016807,2661.2,2661.0,9.92590605]
[1750109365230,0.42016807,2661.2,2661.1,3.7578445]
[1750109370643,0.42016807,2661.2,2661.0,9.92590097]
[1750109373635,0.42016807,2661.2,2661.1,3.7578445]
[1750109375253,0.42016807,2661.2,2661.0,9.92592]
[1750109376054,0.42016807,2661.2,2660.9,3.7580166]
[1750109376255,0.42016807,2661.2,2661.0,9.92195221]
[1750109376431,0.42016807,2661.2,2661.0,6.164]
[1750109376932,0.42016807,2661.2,2660.3,5.17991037]
[1750109376933,6.27240272,2661.1,2660.3,5.17991037]
[1750109377121,6.27240272,2660.9,2660.4,6.164]
[1750109377326,1.61,2660.8,2660.4,9.92276256]
[1750109378431,1.61,2660.8,2660.4,3.75876256]
[1750109378757,1.61,2660.8,2660.5,6.164]
[1750109379482,1.61,2660.8,2660.5,9.92268907]
[1750109381486,1.61,2660.8,2660.6,3.75849131]
[1750109383451,1.61,2660.8,2660.7,3.75840944]
[1750109401459,0.7789,2660.9,2660.8,3.75826819]
[1750109401648,1.606,2660.9,2660.8,3.75826819]
[1750109403719,11.17336807,2661.2,2660.8,3.75826819]
[1750109404044,1.606,2661.1,2660.8,3.75826819]
[1750109406154,7.10187277,2661.1,2660.8,3.75826819]
[1750109406447,7.99510473,2661.1,2660.8,3.75826819]
[1750109410620,7.10187277,2661.1,2660.8,3.75826819]
[1750109413557,17.10187277,2661.1,2660.8,3.75826819]
[1750109421024,11.606,2661.1,2660.8,3.75826819]
[1750109421229,17.10187277,2661.1,2660.8,3.75826819]
[1750109427050,11.606,2661.1,2660.8,3.75826819]
[1750109431796,5.49587277,2661.0,2660.6,4.57454111]
[1750109431962,5.49587277,2660.7,2660.3,0.7915]
[1750109432164,5.49587277,2660.5,2660.0,0.7915]
[1750109432472,1.602,2660.6,2660.0,3.75930994]
[1750109432473,5.49587277,2660.3,2660.0,3.75930994]
[1750109432886,5.49587277,2660.3,2659.9,3.75951644]
[1750109433091,5.49587277,2660.3,2660.0,3.75938837]
[1750109434563,5.49587277,2660.3,2659.9,3.7595307]
[1750109434804,5.49587277,2660.3,2660.1,3.75924678]
[1750109435380,5.49587277,2660.3,2660.0,3.75928152]
[1750109435769,6.12530005,2660.3,2659.9,3.75945559]
[1750109435973,5.49587277,2660.1,2659.9,3.75945559]
[1750109436406,5.49587277,2660.1,2659.9,3.75946017]
[1750109436607,5.49587277,2660.1,2659.9,3.75943705]
[1750109436793,5.49587277,2660.1,2659.8,3.75962431]
[1750109437193,1.602,2660.1,2659.9,3.75943006]
[1750109437589,1.602,2660.1,2660.0,3.75939849]
[1750109440200,23.95766005,2660.1,2659.1,0.02]
[1750109440435,5.49587277,2659.5,2659.4,3.76024667]
[1750109440732,1.602,2659.5,2659.4,3.76024667]
[1750109441310,1.602,2659.5,2659.3,3.76032385]
[1750109441506,1.602,2659.5,2659.3,3.76038807]
[1750109441804,1.602,2659.5,2659.1,0.02]
[1750109442004,1.602,2659.5,2659.3,3.76031535]
[1750109442220,1.602,2659.5,2659.4,3.76024667]
[1750109444902,1.602,2659.5,2659.3,3.76026495]
[1750109445701,1.602,2659.5,2659.1,0.02]
[1750109446233,2.11620139,2659.5,2659.1,3.78059414]
[1750109446439,12.09456571,2659.4,2659.1,0.02]
[1750109446656,10.0,2659.3,2659.1,0.02]
[1750109447232,13.7605047,2659.3,2659.1,0.02]
[1750109447433,1.08008582,2659.2,2659.1,0.02]
[1750109447638,12.67044159,2659.3,2659.1,0.02]
[1750109451444,12.67044159,2659.3,2659.2,3.76052948]
[1750109452247,12.67044159,2659.3,2659.1,0.02]
[1750109452450,21.03075702,2659.3,2659.1,0.02]
[1750109452781,13.76052948,2659.2,2659.1,0.02]
[1750109452933,17.23060867,2659.2,2659.1,0.02]
[1750109453134,19.47164003,2659.2,2659.1,0.02]
[1750109456536,20.30154003,2659.2,2659.1,0.02]
[1750109461172,27.86595546,2659.2,2659.1,0.02]
[1750109464682,30.12595546,2659.2,2659.1,0.02]
[1750109467038,30.67595546,2659.2,2659.1,0.02]
[1750109467475,31.55992044,2659.2,2659.1,0.02]
[1750109469478,3.76190957,2658.3,2658.1,0.02]
[1750109469684,1.599,2658.2,2658.1,0.02]
[1750109470183,5.36094417,2658.2,2658.1,0.02]
[1750109470687,21.50894417,2658.2,2658.1,0.02]
[1750109470871,22.87494417,2658.2,2658.1,0.02]
[1750109472770,30.82494417,2658.2,2658.1,0.02]
[1750109472948,31.76274013,2658.2,2658.1,0.02]
[1750109474772,32.14331933,2658.2,2658.1,0.02]
[1750109476647,46.64331933,2658.2,2658.1,0.02]
[1750109479587,46.64331933,2658.2,2657.1,0.02]
[1750109479588,3.76335992,2657.2,2657.1,0.02]
[1750109479882,29.52977134,2657.2,2657.1,0.02]
[1750109480088,31.33566734,2657.2,2657.1,0.02]
[1750109480446,31.88566734,2657.2,2657.1,0.02]
[1750109480883,32.70226734,2657.2,2657.1,0.02]
[1750109481786,33.24790007,2657.2,2657.1,0.02]
[1750109482175,35.50790007,2657.2,2657.1,0.02]
[1750109482848,36.9099266,2657.2,2657.1,0.02]
[1750109484276,36.02780712,2657.2,2657.1,0.02]
[1750109484482,50.52780712,2657.2,2657.1,0.02]
[1750109484788,3.76449329,2656.4,2656.3,0.0264264]
[1750109485102,29.07390872,2656.4,2656.3,0.0264264]
[1750109485253,30.76823482,2656.4,2656.3,0.0264264]
[1750109485487,31.31823482,2656.4,2656.3,0.0264264]
[1750109485673,30.76823482,2656.4,2656.3,0.0264264]
[1750109485878,32.08222174,2656.4,2656.3,0.0264264]
[1750109486721,32.87102174,2656.4,2656.3,0.0264264]
[1750109486891,4.55456915,2655.5,2655.4,1.0]
[1750109487219,21.57976915,2655.5,2655.4,1.0]
[1750109487425,23.13241675,2655.5,2655.4,1.0]
[1750109487790,11.5526476,2655.5,2655.4,1.0]
[1750109488032,11.5526476,2655.5,2655.4,5.57081097]
[1750109488033,1.5526476,2655.5,2655.4,5.57081097]
[1750109488188,1.5526476,2655.5,2655.4,6.88483361]
[1750109489186,1.5526476,2655.5,2655.4,14.44924904]
[1750109489899,1.5526476,2655.5,2655.4,6.88483361]
[1750109495436,1.5526476,2655.5,2655.4,13.11183361]
[1750109498499,1.5526476,2655.5,2655.4,11.79781097]
[1750109499018,1.5526476,2655.5,2655.4,11.79581097]
[1750109499909,1.5526476,2655.5,2655.4,5.57081097]
[1750109500299,1.5526476,2655.5,2655.4,11.79381097]
[1750109500502,1.5526476,2655.5,2655.4,11.80981097]
[1750109502838,1.5526476,2655.5,2655.4,5.57081097]
[1750109503039,1.5526476,2655.5,2655.4,11.80881097]
[1750109507928,12.92655005,2656.0,2655.5,3.76563783]
[1750109508123,1.37365501,2655.9,2655.5,3.76563783]
[1750109508609,5.1388671,2655.9,2655.5,3.76563783]
[1750109508814,5.1388671,2655.9,2655.6,6.229]
[1750109509014,1.37365501,2655.9,2655.6,9.99461741]
[1750109509429,1.37365501,2655.9,2655.6,6.228]
[1750109510243,1.37365501,2655.9,2655.6,9.99359662]
[1750109516354,1.37365501,2655.9,2655.6,9.98259662]
[1750109517231,1.37365501,2655.9,2655.6,6.217]
[1750109518636,1.37365501,2655.9,2655.6,9.98261959]
[1750109519558,1.37365501,2655.9,2655.6,6.217]
[1750109519758,7.96274333,2655.8,2655.6,6.213]
[1750109520350,0.3983279,2655.8,2655.5,6.211]
[1750109520558,12.11392391,2655.9,2655.5,6.211]
[1750109520737,3.76535601,2655.8,2655.5,6.211]
[1750109522358,3.76535601,2655.8,2655.4,3.76589764]
[1750109522560,3.76535601,2655.8,2655.5,6.21]
[1750109523082,11.3298207,2655.8,2655.5,6.21]
[1750109523378,11.3298207,2655.8,2655.5,6.209]
[1750109523379,13.16652871,2655.8,2655.5,6.209]
[1750109523581,5.60211328,2655.8,2655.5,6.209]
[1750109524379,7.86111328,2655.8,2655.5,6.209]
[1750109524585,5.60211328,2655.8,2655.5,6.209]
[1750109526185,3.76555629,2655.7,2655.5,6.209]
[1750109527051,3.76565752,2655.6,2655.2,4.53974596]
[1750109527385,3.76565752,2655.6,2655.4,6.206]
[1750109527786,3.7655345,2655.7,2655.4,6.206]
[1750109529316,1.646,2655.6,2655.4,6.206]
[1750109530288,3.76578216,2655.5,2655.2,0.005]
[1750109530509,3.76578216,2655.5,2655.3,6.199]
[1750109530672,10.0,2655.7,2655.3,6.199]
[1750109530873,0.83150825,2655.7,2655.3,6.199]
[1750109531101,4.65588749,2656.5,2656.0,3.76498884]
[1750109531417,0.7551,2656.7,2656.1,6.199]
[1750109531692,5.0274644,2656.8,2656.1,6.199]
[1750109531693,5.02739935,2656.8,2656.3,4.59746596]
[1750109531892,10.0,2656.7,2656.3,4.59746596]
[1750109532069,10.0,2656.7,2656.4,3.76447756]
[1750109532271,10.0,2656.7,2656.3,4.59745562]
[1750109534597,10.0,2656.7,2656.3,0.8329]
[1750109534802,11.66733994,2656.7,2656.3,0.8329]
[1750109535096,3.7642747,2656.6,2656.3,0.8329]
[1750109535309,15.43148939,2656.7,2656.4,6.218]
[1750109535468,3.76421429,2656.6,2656.4,6.218]
[1750109538474,3.76431983,2656.6,2656.0,0.7617]
[1750109538679,5.97301882,2656.6,2656.1,9.97787402]
[1750109539393,2.20869899,2656.6,2656.2,3.76475483]
[1750109540302,17.85728887,2656.7,2656.2,3.76475483]
[1750109540606,14.09313994,2656.7,2656.3,3.76462188]
[1750109541104,17.85721136,2656.7,2656.1,9.97785774]
[1750109541768,17.85721136,2656.7,2656.3,3.76462885]
[1750109541967,17.05941136,2656.7,2656.3,3.76462885]
[1750109543212,17.05941136,2656.7,2656.2,3.76470794]
[1750109547219,13.29533994,2656.7,2656.3,3.76460967]
[1750109547713,13.29533994,2656.7,2656.4,3.76443663]
[1750109547714,11.628,2656.7,2656.4,3.76443663]
[1750109547880,11.628,2656.7,2656.3,3.76459526]
[1750109548207,11.628,2656.7,2656.3,3.76456489]
[1750109548971,11.628,2656.7,2656.1,6.213]
[1750109550204,15.39207619,2656.7,2656.1,6.213]
[1750109551077,3.76422574,2656.6,2656.1,6.213]
[1750109551799,11.628,2656.7,2656.1,6.213]
[1750109552108,5.4298036,2656.6,2656.1,6.213]
[1750109553211,3.76440745,2656.5,2656.1,6.213]
[1750109553615,0.1,2656.4,2656.1,6.213]
[1750109554302,3.86453332,2656.4,2656.0,0.7617]
[1750109554501,3.76480887,2656.2,2656.1,6.19]
[1750109554718,3.76466028,2656.3,2656.1,6.19]
[1750109557212,3.76466028,2656.3,2656.0,0.7617]
[1750109557213,3.76465407,2656.3,2655.4,10.0]
[1750109557417,3.76465407,2656.3,2655.7,0.8179]
[1750109557418,3.76498053,2656.1,2655.7,0.8179]
[1750109558113,3.76512378,2656.0,2655.8,6.188]
[1750109558280,0.1,2656.4,2655.8,6.188]
[1750109558281,3.76498886,2656.1,2655.8,6.188]
[1750109558810,3.76492227,2656.1,2655.8,6.188]
[1750109561633,3.76492227,2656.1,2655.9,6.184]
[1750109561839,0.1,2656.4,2655.9,6.184]
[1750109562039,0.1,2656.4,2655.7,0.8179]
[1750109562040,3.76500778,2656.1,2655.7,0.8179]
[1750109562226,3.76500778,2656.1,2656.0,6.183]
[1750109562628,1.48857062,2656.4,2655.7,0.8179]
[1750109562629,3.76519419,2656.0,2655.7,0.8179]
[1750109562817,3.76513537,2656.0,2655.8,6.182]
[1750109563136,3.76513537,2656.0,2655.9,6.182]
[1750109569053,3.76513537,2656.0,2655.9,6.177]
[1750109569746,3.7654297,2655.8,2655.4,0.8257]
[1750109569949,3.76556076,2655.7,2655.5,6.174]
[1750109570313,3.76542232,2655.8,2655.5,6.174]
[1750109570650,3.76548598,2655.7,2655.5,6.174]
[1750109571745,3.76548598,2655.7,2655.6,6.172]
[1750109574115,3.76576915,2655.5,2655.4,0.8257]
[1750109574320,3.76567579,2655.6,2655.2,0.005]
[1750109574538,3.76585002,2655.5,2655.3,6.17]
[1750109575854,3.76585002,2655.5,2655.4,6.17]
[1750109576059,0.7893,2655.7,2655.2,0.005]
[1750109576060,3.7660528,2655.3,2655.2,0.005]
[1750109576254,3.7660528,2655.3,2655.2,6.175]
[1750109578925,3.7660528,2655.3,2655.2,0.005]
[1750109579259,3.7660528,2655.3,2655.2,6.172]
[1750109580333,3.7660528,2655.3,2655.2,6.171]
[1750109587574,3.7660528,2655.3,2655.2,0.005]
[1750109587789,3.7660528,2655.3,2655.2,6.171]
[1750109588790,3.7660528,2655.3,2655.2,0.005]
[1750109588961,3.76568557,2655.6,2655.2,6.171]
[1750109589170,3.76597597,2655.4,2655.2,6.171]
[1750109589989,3.7660528,2655.3,2655.2,6.171]
[1750109590978,3.76599618,2655.4,2655.2,6.171]
[1750109598066,3.76599618,2655.4,2655.3,6.166]
[1750109598265,3.76599618,2655.4,2655.2,0.005]
[1750109598449,3.76599618,2655.4,2655.3,6.166]
[1750109605127,0.89324632,2655.7,2655.3,6.9725]
[1750109605290,10.0,2655.8,2655.4,3.76584143]
[1750109605489,3.76527392,2655.9,2655.4,3.76591097]
[1750109605692,3.76516723,2656.0,2655.4,1.51285411]
[1750109605878,3.7652445,2655.9,2655.4,5.27866054]
[1750109612945,11.32956487,2656.0,2655.4,1.51285411]
[1750109613150,3.7654176,2655.8,2655.3,11.35758928]
[1750109613552,3.7654176,2655.8,2655.4,3.76591005]
[1750109613936,2.4097,2656.1,2655.3,7.5916]
[1750109613937,12.4097,2656.1,2655.3,7.5916]
[1750109614137,5.36898492,2656.1,2655.7,3.76546771]
[1750109614446,5.36883521,2656.2,2655.8,6.9356]
[1750109618876,11.32969674,2655.9,2655.6,6.164]
[1750109619442,3.76528131,2655.9,2655.6,6.164]
[1750109619642,4.58062473,2656.0,2655.6,6.164]
[1750109619842,3.76521391,2655.9,2655.6,6.164]
[1750109620580,4.58061656,2656.0,2655.6,6.164]
[1750109623152,3.76511656,2656.0,2655.6,9.92960618]
[1750109623351,4.58078963,2655.9,2655.4,3.76585406]
[1750109623544,12.14520506,2655.9,2655.4,9.92885406]
[1750109623743,3.76511413,2656.0,2655.5,3.76573898]
[1750109625296,4.58053503,2656.1,2655.6,3.76550343]
[1750109633571,3.76503503,2656.1,2655.6,3.76550343]
[1750109637812,3.76503503,2656.1,2655.7,0.7851]
[1750109638527,3.76503503,2656.1,2655.7,4.55057976]
[1750109638831,3.76503503,2656.1,2655.7,0.7851]
[1750109643698,3.76506686,2656.0,2655.7,0.7851]
[1750109649721,10.88287732,2656.1,2655.7,0.7851]
[1750109650332,3.76507226,2656.0,2655.7,0.7851]
[1750109652031,3.76502395,2656.1,2655.7,4.55054661]
[1750109652231,3.76502395,2656.1,2655.7,0.7851]
[1750109655165,3.7651174,2656.0,2655.7,0.7851]
[1750109657651,9.28116646,2655.9,2655.5,6.16]
[1750109658555,9.28116646,2655.9,2655.5,9.925731]
[1750109659197,5.51588392,2655.9,2655.5,9.925731]
[1750109661988,9.28114473,2655.9,2655.5,6.16]
[1750109662364,9.28114473,2655.9,2655.5,9.92576763]
[1750109663691,9.28114473,2655.9,2655.5,6.16]
[1750109664717,9.28114473,2655.9,2655.5,9.92574613]
[1750109665708,0.7513,2655.8,2655.4,3.76587094]
[1750109665905,14.5173528,2655.3,2655.2,0.005]
[1750109666109,23.79904359,2655.3,2655.2,0.005]
[1750109666314,27.03912808,2655.3,2655.2,0.005]
[1750109667510,31.66288878,2655.3,2655.2,0.005]
[1750109667870,35.36112655,2655.3,2655.2,0.005]
[1750109668378,35.73486677,2655.3,2655.2,0.005]
[1750109669011,37.81088601,2655.3,2655.2,0.005]
[1750109669389,36.92164824,2655.3,2655.2,0.005]
[1750109669739,37.80951632,2655.3,2655.2,0.005]
[1750109670483,36.92164824,2655.3,2655.2,0.005]
[1750109670800,37.80922356,2655.3,2655.2,0.005]
[1750109671402,36.92164824,2655.3,2655.2,0.005]
[1750109672316,51.42164824,2655.3,2655.2,0.005]
[1750109674685,16.57519463,2655.2,2654.4,0.005]
[1750109674817,1.0,2653.0,2652.0,2.99507699]
[1750109675005,1.0,2653.0,2651.0,0.2113034]
[1750109675006,28.95426103,2652.2,2651.0,0.2113034]
[1750109675215,17.0105392,2652.2,2651.0,0.2113034]
[1750109675435,29.97135787,2652.2,2651.1,3.79196305]
[1750109675639,14.14724991,2652.2,2651.1,0.02]
[1750109675942,10.0,2652.2,2651.6,3.7712627]
[1750109676245,13.77045471,2652.2,2651.1,0.02]
[1750109676448,13.77045471,2652.2,2651.2,3.77182514]
[1750109676606,21.36235787,2652.2,2651.1,0.02]
[1750109676810,23.91237723,2652.2,2651.1,0.02]
[1750109677008,23.91237723,2652.2,2651.1,3.79201692]
[1750109677208,3.77088125,2651.9,2651.1,0.02]
[1750109677415,3.77187688,2651.2,2651.1,0.02]
[1750109678342,7.59190316,2651.3,2651.1,0.02]
[1750109678852,13.77187688,2651.2,2651.1,0.02]
[1750109679022,14.46194201,2651.2,2651.1,0.02]
[1750109679348,22.60384517,2651.2,2651.1,0.02]
[1750109679654,10.0,2651.2,2651.1,0.02]
[1750109679809,11.759,2651.2,2651.1,0.02]
[1750109680010,1.37202694,2651.4,2651.1,0.02]
[1750109680449,1.37202694,2651.4,2651.3,4.53063462]
[1750109680824,4.5756768,2653.3,2652.4,3.77005067]
[1750109681022,7.78870316,2654.3,2652.5,0.03769969]
[1750109681023,0.05546683,2652.9,2652.5,0.03769969]
[1750109681211,0.7593,2653.7,2652.9,0.824]
[1750109681546,7.59190316,2653.3,2652.9,0.824]
[1750109681747,7.59190316,2653.3,2652.2,7.287]
[1750109681949,7.59190316,2653.3,2652.6,3.76979624]
[1750109682124,9.35090316,2653.3,2652.6,3.76979624]
[1750109682309,9.35090316,2653.3,2652.4,3.7700717]
[1750109682310,10.0,2653.2,2652.7,3.76974258]
[1750109682505,9.35090316,2653.3,2652.7,3.76974258]
[1750109682918,10.0,2653.2,2652.7,3.76974258]
[1750109683212,10.0,2653.2,2652.6,3.76982278]
[1750109683712,10.0,2653.2,2652.5,3.76996557]
[1750109684251,10.0,2653.2,2652.6,3.76987447]
[1750109684633,1.76,2653.2,2652.6,3.76987447]
[1750109685236,1.76,2653.2,2652.7,3.76974008]
[1750109685443,1.76,2653.2,2652.2,0.824]
[1750109685643,1.76,2653.2,2652.7,3.76973891]
[1750109686423,1.76,2653.2,2652.7,3.76962362]
[1750109686930,11.76,2653.3,2652.7,3.76962362]
[1750109687850,11.76,2653.3,2652.8,3.76951556]
[1750109688446,0.37661274,2653.5,2652.9,3.76945983]
[1750109688667,10.0,2653.3,2652.9,3.76945983]
[1750109690365,1.76,2653.4,2652.9,3.76945983]
[1750109690567,3.78810857,2653.9,2652.9,4.59165145]
[1750109690568,0.02,2653.9,2652.9,4.59165145]
[1750109690744,0.02,2653.9,2652.9,6.03408386]
[1750109691368,10.02,2653.9,2652.9,6.03408386]
[1750109694886,0.02,2653.9,2652.9,6.03408386]
[1750109695087,0.02,2653.9,2653.8,3.76818147]
[1750109702589,0.02,2653.9,2653.6,11.00225914]
[1750109702790,0.02,2653.9,2653.8,3.76818147]
[1750109703194,0.02,2653.9,2653.8,10.17518147]
[1750109706208,7.61550174,2653.9,2653.2,0.7641]
[1750109706358,0.7541,2653.4,2652.9,3.76945983]
[1750109706553,0.7541,2653.4,2653.0,3.76925028]
[1750109706751,0.7541,2653.4,2653.1,3.76916168]
[1750109706997,0.7541,2653.4,2653.0,3.76924062]
[1750109707489,0.7541,2653.4,2653.1,6.404]
[1750109708353,0.7541,2653.4,2653.1,10.17316251]
[1750109709202,0.7541,2653.4,2653.1,10.17216251]
[1750109709812,0.7541,2653.4,2653.1,10.16516251]
[1750109712616,0.7541,2653.4,2652.7,3.76971762]
[1750109712617,3.76940914,2653.0,2652.1,0.7641]
[1750109712787,0.7541,2652.9,2652.3,3.77022045]
[1750109712976,10.7541,2652.9,2652.4,6.394]
[1750109713177,2.42134296,2652.8,2652.4,6.4]
[1750109713586,10.0,2652.7,2652.4,6.4]
[1750109713786,1.249583,2652.8,2652.4,6.4]
[1750109714012,0.36867488,2652.8,2652.4,6.4]
[1750109714212,10.7541,2652.9,2652.5,3.7699514]
[1750109714415,10.0,2652.9,2652.5,3.7699514]
[1750109714713,14.65008543,2653.1,2652.4,10.17011586]
[1750109715011,16.74239506,2653.1,2652.4,6.4]
[1750109715318,3.76947359,2652.9,2652.4,10.17005045]
[1750109716010,3.76947359,2652.9,2652.4,3.77005045]
[1750109716212,3.76947359,2652.9,2652.3,4.52940661]
[1750109716213,3.76982249,2652.7,2651.7,4.59865949]
[1750109716415,4.60077988,2652.7,2652.2,3.77039009]
[1750109716713,3.76982249,2652.7,2652.3,6.416]
[1750109718320,3.76982249,2652.7,2652.4,6.412]
[1750109718531,3.76982249,2652.7,2649.5,0.19000365]
[1750109718532,0.7957,2651.0,2649.5,0.19000365]
[1750109718712,0.7957,2651.0,2649.6,3.7741327]
[1750109718713,2.259,2650.8,2649.6,3.7741327]
[1750109719022,0.55,2650.5,2649.4,6.77]
[1750109719221,3.77330012,2650.2,2649.5,3.77421382]
[1750109719529,3.77330012,2650.2,2649.4,10.54442644]
[1750109719682,3.77324751,2650.3,2649.7,6.766]
[1750109720292,3.77287304,2650.5,2649.1,0.02]
[1750109720293,3.77330012,2650.2,2649.1,0.02]
[1750109720498,3.77330012,2650.2,2649.7,6.769]
[1750109720894,3.77330012,2650.2,2649.2,3.77468985]
[1750109721098,3.77330012,2650.2,2649.6,6.78]
[1750109722297,3.77330012,2650.2,2649.2,10.0]
[1750109722298,3.77330012,2650.2,2649.5,6.777]
[1750109722491,13.77330012,2650.2,2649.5,6.772]
[1750109722820,14.58194249,2650.2,2649.5,6.772]
[1750109723591,13.77330012,2650.2,2649.5,10.54624454]
[1750109723926,13.77330012,2650.2,2649.6,3.77409345]
[1750109724127,13.77330012,2650.2,2649.2,3.77460683]
[1750109724330,13.77330012,2650.2,2649.5,6.767]
[1750109724536,13.77330012,2650.2,2649.6,3.77406863]
[1750109724685,13.77330012,2650.2,2649.5,3.77422633]
[1750109724891,13.77330012,2650.2,2649.5,10.54322633]
[1750109725805,13.77330012,2650.2,2649.5,6.769]
[1750109726541,13.77330012,2650.2,2649.6,3.7740884]
[1750109727835,10.0,2650.2,2649.7,4.56011085]
[1750109728137,10.43205414,2650.3,2649.9,3.77365856]
[1750109728338,14.20523064,2650.3,2649.8,3.77379769]
[1750109728537,14.20523064,2650.3,2649.8,3.77383044]
[1750109729308,14.20524398,2650.3,2649.8,3.77383488]
[1750109729511,10.43205414,2650.3,2649.7,4.56014774]
[1750109729711,3.77330012,2650.2,2649.7,0.7862]
[1750109730045,3.77330012,2650.2,2649.7,4.5601243]
[1750109730613,5.52793479,2650.2,2649.7,4.5601243]
[1750109730829,5.52793479,2650.2,2649.8,3.77382791]
[1750109730830,1.75463467,2650.2,2649.8,3.77382791]
[1750109731243,5.52793479,2650.2,2649.7,4.56013123]
[1750109731541,3.77330012,2650.2,2649.7,4.56013123]
[1750109731745,3.77305809,2650.4,2649.7,4.56018747]
[1750109731746,10.0,2650.4,2649.7,4.56018747]
[1750109731942,3.77317408,2650.3,2649.8,3.77380216]
[1750109732919,16.12359411,2650.4,2649.9,3.77368558]
[1750109733118,15.25151654,2650.4,2649.7,0.7862]
[1750109733324,3.77329988,2650.3,2649.7,4.56012067]
[1750109733614,3.77330012,2650.2,2649.7,4.56012067]
[1750109733820,3.77322388,2650.3,2649.8,3.77384285]
[1750109734233,3.77322907,2650.3,2649.8,3.77385627]
[1750109734550,19.02460836,2650.4,2649.9,3.77370637]
[1750109734750,3.77319471,2650.3,2649.8,3.77380927]
[1750109735458,15.25151654,2650.4,2649.8,3.77380927]
[1750109735606,3.77320229,2650.3,2649.8,3.77380927]
[1750109735813,3.77315775,2650.3,2649.8,3.77380927]
[1750109736708,17.05859585,2650.4,2649.9,3.77371174]
[1750109736953,3.77317223,2650.3,2649.9,3.77371174]
[1750109737647,17.05863385,2650.4,2649.9,3.7737183]
[1750109737852,13.28551654,2650.4,2649.7,4.56015492]
[1750109738447,13.28551654,2650.4,2649.8,3.77373938]
[1750109738648,17.05855233,2650.4,2649.8,3.77373938]
[1750109738944,17.05855233,2650.4,2649.9,3.77366516]
[1750109739144,17.05857604,2650.4,2649.9,3.77369028]
[1750109739868,17.05857604,2650.4,2649.8,3.77386339]
[1750109739869,3.77322322,2650.3,2649.8,3.77386339]
[1750109740052,13.28551654,2650.4,2649.9,3.77371351]
[1750109740252,12.900952,2650.4,2649.7,0.7862]
[1750109740425,16.67398794,2650.4,2650.0,3.77352209]
[1750109740628,16.67398794,2650.4,2649.9,3.77366474]
[1750109740851,0.45399225,2650.3,2649.9,3.77366474]
[1750109743572,4.22715565,2650.3,2649.8,3.77377141]
[1750109745066,0.45399225,2650.3,2649.9,3.77367922]
[1750109745852,1.33560209,2650.3,2649.9,3.77367922]
[1750109746055,5.1087782,2650.3,2649.9,3.77367922]
[1750109746236,0.88160984,2650.2,2649.9,3.77367922]
[1750109747744,0.88160984,2650.2,2649.8,3.773755]
[1750109748153,3.09030862,2650.2,2649.8,3.773755]
[1750109748469,8.2927306,2650.2,2649.7,4.56009823]
[1750109748706,8.2927306,2650.2,2649.8,3.77385455]
[1750109748858,2.3107317,2650.2,2649.8,3.77385455]
[1750109749553,6.08403182,2650.2,2649.7,4.56018339]
[1750109749953,6.08403182,2650.2,2649.7,4.56013572]
[1750109750261,2.3107317,2650.2,2649.8,3.77386025]
[1750109756590,2.8107317,2650.2,2649.8,3.77386025]
[1750109757799,1.38160984,2650.2,2649.9,3.77371098]
[1750109758099,1.38160984,2650.2,2649.9,3.77370427]